fUST/lending_fUST_20240428
["ID","MTS","AMOUNT","RATE_DAILY","PERIOD"]
[323759733,1714252317556,-2198.23,0.00039726,30]
[323759734,1714252317581,-797.6,0.00039726,30]
[323759735,1714252317608,-1102.1,0.00039726,30]
[323759736,1714252317638,-500.0,0.00039726,30]
[323759737,1714252317665,-500.0,0.00039726,30]
[323759738,1714252317692,-501.40464481,0.00039726,30]
[323759739,1714252317716,-500.0,0.00039726,30]
[323759740,1714252317740,-500.0,0.00039726,30]
[323759741,1714252317766,-500.0,0.00039726,30]
[323759742,1714252317790,-500.0,0.00039726,30]
[323759743,1714252317815,-500.0,0.00039726,30]
[323759744,1714252317839,-501.13459142,0.00039726,30]
[323759745,1714252317864,-502.41415408,0.00039726,30]
[323759746,1714252317888,-500.0,0.00039726,30]
[323759747,1714252317912,-500.0,0.00039726,30]
[323759748,1714252317938,-500.0,0.00039726,30]
[323759749,1714252317962,-500.0,0.00039726,30]
[323759750,1714252317986,-500.0,0.00039726,30]
[323759751,1714252318010,-500.0,0.00039726,30]
[323759752,1714252318035,-509.03569358,0.00039726,30]
[323759753,1714252318058,-500.0,0.00039726,30]
[323759754,1714252318081,-500.0,0.00039726,30]
[323759755,1714252318103,-500.0,0.00039726,30]
[323759756,1714252318130,-500.0,0.00039726,30]
[323759757,1714252318156,-500.0,0.00039726,30]
[323759758,1714252318181,-500.0,0.00039726,30]
[323759759,1714252318208,-500.97666944,0.00039726,30]
[323759760,1714252318347,-589.42406264,0.00039726,30]
[323759761,1714252318373,-500.0,0.00039726,30]
[323759762,1714252318399,-822.51,0.00039726,30]
[323759763,1714252318425,-500.0,0.00039726,30]
[323759764,1714252318452,-504.41683137,0.00039726,30]
[323759765,1714252318488,-500.0,0.00039726,30]
[323759766,1714252318521,-500.0,0.00039726,30]
[323759767,1714252318551,-500.0,0.00039726,30]
[323759768,1714252318582,-500.0,0.00039726,30]
[323759769,1714252318611,-500.0,0.00039726,30]
[323759770,1714252318639,-500.0,0.00039726,30]
[323759771,1714252318670,-788.14,0.00039726,30]
[323759772,1714252318698,-500.0,0.00039726,30]
[323759773,1714252318723,-500.0,0.00039726,30]
[323759774,1714252318750,-500.0,0.00039726,30]
[323759775,1714252318778,-500.0,0.00039726,30]
[323759776,1714252318805,-500.0,0.00039726,30]
[323759777,1714252318832,-500.0,0.00039726,30]
[323759778,1714252318859,-500.0,0.00039726,30]
[323759779,1714252318887,-500.0,0.00039726,30]
[323759780,1714252318916,-500.0,0.00039726,30]
[323759781,1714252318942,-500.0,0.00039726,30]
[323759782,1714252318968,-500.0,0.00039726,30]
[323759783,1714252318995,-500.0,0.00039726,30]
[323759784,1714252319021,-500.0,0.00039726,30]
[323759785,1714252319050,-619.59,0.00039726,30]
[323759786,1714252319077,-500.0,0.00039726,30]
[323759787,1714252319104,-500.0,0.00039726,30]
[323759788,1714252319135,-154.86062544,0.00039726,30]
[323759789,1714252319163,-643.51,0.00039726,30]
[323759790,1714252319190,-500.0,0.00039726,30]
[323759791,1714252319218,-500.0,0.00039726,30]
[323759792,1714252319247,-500.0,0.00039726,30]
[323759793,1714252319273,-500.0,0.00039726,30]
[323759794,1714252319299,-500.0,0.00039726,30]
[323759795,1714252319324,-500.0,0.00039726,30]
[323759796,1714252319352,-500.0,0.00039726,30]
[323759797,1714252319380,-500.0,0.00039726,30]
[323759798,1714252319407,-500.0,0.00039726,30]
[323759799,1714252319431,-500.0,0.00039726,30]
[323759800,1714252319458,-500.0,0.00039726,30]
[323759801,1714252319485,-500.0,0.00039726,30]
[323759802,1714252319512,-500.0,0.00039726,30]
[323759803,1714252319539,-500.0,0.00039726,30]
[323759804,1714252319566,-500.0,0.00039726,30]
[323759805,1714252319593,-500.0,0.00039726,30]
[323759806,1714252319620,-187.28068823,0.00039726,30]
[323759807,1714252319645,-500.0,0.00039726,30]
[323759808,1714252319672,-500.0,0.00039726,31]
[323759809,1714252319700,-500.0,0.00039726,32]
[323759810,1714252319726,-500.0,0.00039726,30]
[323759811,1714252319755,-500.0,0.00039726,33]
[323759812,1714252319784,-500.0,0.00039726,30]
[323759813,1714252319814,-500.0,0.00039726,34]
[323759814,1714252319840,-500.0,0.00039726,35]
[323759815,1714252319863,-500.0,0.00039726,36]
[323759816,1714252319887,-500.0,0.00039726,37]
[323759817,1714252319912,-500.0,0.00039726,38]
[323759818,1714252319936,-500.0,0.00039726,39]
[323759819,1714252319962,-500.0,0.00039726,40]
[323759820,1714252319986,-500.0,0.00039726,41]
[323759821,1714252320011,-500.0,0.00039726,42]
[323759822,1714252320035,-500.0,0.00039726,43]
[323759823,1714252320059,-500.0,0.00039726,44]
[323759824,1714252320083,-500.0,0.00039726,45]
[323759825,1714252320108,-500.0,0.00039726,46]
[323759826,1714252320134,-257.4917654,0.00039726,47]
[323759827,1714252320160,-500.0,0.00039726,30]
[323759828,1714252320185,-500.0,0.00039726,30]
[323759829,1714252320211,-605.9688568,0.00039726,30]
[323759830,1714252320237,-500.0,0.00039726,30]
[323759831,1714252320264,-500.0,0.00039726,30]
[323759832,1714252320290,-500.0,0.00039726,30]
[323759833,1714252320316,-587.71954865,0.00039726,30]
[323759834,1714252320342,-747.06,0.00039726,30]
[323759835,1714252320368,-504.17903085,0.00039726,30]
[323759836,1714252320394,-500.0,0.00039726,30]
[323759837,1714252320541,-506.00321938,0.00039726,30]
[323759838,1714252320566,-500.0,0.00039726,30]
[323759839,1714252320591,-1000.0,0.00039726,30]
[323759840,1714252320616,-500.0,0.00039726,30]
[323759841,1714252320641,-500.0,0.00039726,30]
[323759842,1714252320668,-500.0,0.00039726,30]
[323759843,1714252320694,-254.96522862,0.00039726,30]
[323759844,1714252320719,-500.0,0.00039726,30]
[323759845,1714252320744,-500.0,0.00039726,30]
[323759846,1714252320769,-500.0,0.00039726,30]
[323759847,1714252320795,-500.0,0.00039726,30]
[323759848,1714252320820,-500.0,0.00039726,30]
[323759849,1714252320850,-680.78,0.00039726,30]
[323759850,1714252320880,-500.0,0.00039726,30]
[323759851,1714252320906,-500.0,0.00039726,30]
[323759852,1714252320931,-500.0,0.00039726,30]
[323759853,1714252320958,-500.0,0.00039726,30]
[323759854,1714252320983,-5358.76,0.00039726,30]
[323759855,1714252321010,-500.0,0.00039726,30]
[323759856,1714252321040,-500.0,0.00039726,30]
[323759857,1714252321065,-503.63121849,0.00039726,30]
[323759858,1714252321090,-1394.24,0.00039726,30]
[323759859,1714252321117,-500.0,0.00039726,30]
[323759860,1714252321142,-500.0,0.00039726,30]
[323759861,1714252321170,-500.0,0.00039726,30]
[323759862,1714252321195,-500.0,0.00039726,30]
[323759863,1714252321218,-500.0,0.00039726,30]
[323759864,1714252321242,-500.0,0.00039726,30]
[323759865,1714252321266,-500.0,0.00039726,30]
[323759866,1714252321290,-500.0,0.00039726,30]
[323759867,1714252321316,-500.0,0.00039726,30]
[323759868,1714252321341,-503.61746217,0.00039726,30]
[323759869,1714252321365,-500.0,0.00039726,30]
[323759870,1714252321389,-1720.21,0.00039726,30]
[323759871,1714252321416,-500.0,0.00039726,30]
[323759872,1714252321446,-500.0,0.00039726,30]
[323759873,1714252321470,-500.0,0.00039726,30]
[323759874,1714252321500,-509.02222809,0.00039726,30]
[323759875,1714252321538,-503.25494196,0.00039726,30]
[323759876,1714252321576,-500.0,0.00039726,30]
[323759877,1714252321613,-799.11,0.00039726,30]
[323759878,1714252321646,-1010.67,0.00039726,30]
[323759879,1714252321681,-631.31,0.00039726,30]
[323759880,1714252321719,-1154.14,0.00039726,30]
[323759881,1714252321754,-500.0,0.00039726,30]
[323759882,1714252321785,-500.0,0.00039726,30]
[323759883,1714252321822,-1290.8,0.00039726,30]
[323759884,1714252321856,-540.54,0.00039726,30]
[323759885,1714252321884,-500.0,0.00039726,30]
[323759886,1714252321918,-1623.32,0.00039726,30]
[323759887,1714252321948,-500.0,0.00039726,30]
[323759888,1714252321979,-621.70323389,0.00039726,30]
[323759889,1714252322011,-500.0,0.00039726,30]
[323759890,1714252322044,-500.0,0.00039726,30]
[323759891,1714252322075,-500.0,0.00039726,30]
[323759892,1714252322107,-611.83397246,0.00039726,30]
[323759893,1714252322141,-500.0,0.00039726,30]
[323759894,1714252322172,-500.0,0.00039726,30]
[323759895,1714252322203,-500.0,0.00039726,30]
[323759896,1714252322237,-3586.83,0.00039726,30]
[323759897,1714252322268,-500.0,0.00039726,30]
[323759898,1714252322298,-2791.65,0.00039726,30]
[323759899,1714252322329,-500.0,0.00039726,30]
[323759900,1714252322360,-500.0,0.00039726,30]
[323759901,1714252322392,-500.0,0.00039726,30]
[323759902,1714252322425,-500.0,0.00039726,30]
[323759903,1714252322457,-500.0,0.00039726,30]
[323759904,1714252322488,-364.61303874,0.00039726,30]
[323759905,1714252322520,-738.83,0.00039726,30]
[323759906,1714252322550,-513.66242577,0.00039726,30]
[323759907,1714252322581,-500.0,0.00039726,30]
[323759908,1714252322611,-500.0,0.00039726,30]
[323759909,1714252322643,-500.0,0.00039726,30]
[323759910,1714252322673,-509.07046185,0.00039726,30]
[323759911,1714252322704,-500.0,0.00039726,30]
[323759912,1714252322899,-500.0,0.00039726,30]
[323759913,1714252322926,-500.0,0.00039726,30]
[323759914,1714252322949,-1682.62,0.00039726,30]
[323759915,1714252322974,-1473.62,0.00039726,30]
[323759916,1714252322999,-500.0,0.00039726,30]
[323759917,1714252323024,-500.0,0.00039726,30]
[323759918,1714252323050,-500.0,0.00039726,30]
[323759919,1714252323074,-500.0,0.00039726,30]
[323759920,1714252323100,-500.0,0.00039726,30]
[323759921,1714252323127,-500.0,0.00039726,30]
[323759922,1714252323152,-500.0,0.00039726,30]
[323759923,1714252323178,-500.0,0.00039726,30]
[323759924,1714252323204,-489.94468079,0.00039726,30]
[323759925,1714252323228,-609.89176991,0.00039726,30]
[323759926,1714252323253,-500.0,0.00039726,30]
[323759927,1714252323278,-208.30962631,0.00039726,30]
[323759928,1714252323303,-830.76,0.00039726,30]
[323759929,1714252323328,-500.0,0.00039726,30]
[323759930,1714252323352,-500.0,0.00039726,30]
[323759931,1714252323376,-500.0,0.00039726,30]
[323759932,1714252323400,-500.0,0.00039726,30]
[323759933,1714252323424,-1327.99,0.00039726,30]
[323759934,1714252323451,-530.19569154,0.00039726,30]
[323759935,1714252323474,-653.44,0.00039726,30]
[323759936,1714252323497,-375.65990762,0.00039726,30]
[323759937,1714252323524,-1022.29,0.00039726,30]
[323759938,1714252323548,-502.64266896,0.00039726,30]
[323759939,1714252323573,-891.38,0.00039726,30]
[323759940,1714252323598,-500.0,0.00039726,30]
[323759941,1714252323623,-546.59,0.00039726,30]
[323759942,1714252323648,-500.0,0.00039726,30]
[323759943,1714252323673,-226.79638777,0.00039726,30]
[323759944,1714252323701,-500.0,0.00039726,30]
[323759945,1714252323725,-500.0,0.00039726,30]
[323759946,1714252323749,-500.0,0.00039726,30]
[323759947,1714252323772,-500.0,0.00039726,30]
[323759948,1714252323799,-500.0,0.00039726,30]
[323759949,1714252323825,-500.0,0.00039726,30]
[323759950,1714252323849,-500.0,0.00039726,30]
[323759951,1714252323875,-500.0,0.00039726,30]
[323759952,1714252323900,-501.49221067,0.00039726,30]
[323759953,1714252323927,-500.0,0.00039726,30]
[323759954,1714252323955,-500.0,0.00039726,30]
[323759955,1714252323980,-1339.82,0.00039726,30]
[323759956,1714252324005,-500.0,0.00039726,30]
[323759957,1714252324030,-485.29550269,0.00039726,30]
[323759958,1714252324056,-500.0,0.00039726,30]
[323759959,1714252324081,-500.0,0.00039726,30]
[323759960,1714252324105,-1586.5,0.00039726,30]
[323759961,1714252324130,-500.0,0.00039726,30]
[323759962,1714252324155,-824.0,0.00039726,30]
[323759963,1714252324178,-500.0,0.00039726,30]
[323759964,1714252324203,-500.0,0.00039726,30]
[323759965,1714252324228,-500.0,0.00039726,30]
[323759966,1714252324253,-500.0,0.00039726,30]
[323759967,1714252324278,-607.27806215,0.00039726,30]
[323759968,1714252324301,-500.0,0.00039726,30]
[323759969,1714252324328,-500.0,0.00039726,30]
[323759970,1714252324353,-500.0,0.00039726,30]
[323759971,1714252324378,-1339.73,0.00039726,30]
[323759972,1714252324401,-500.0,0.00039726,30]
[323759973,1714252324427,-500.27765352,0.00039726,30]
[323759974,1714252324453,-722.19,0.00039726,30]
[323759975,1714252324477,-500.0,0.00039726,30]
[323759976,1714252324501,-500.0,0.00039726,30]
[323759977,1714252324526,-500.0,0.00039726,30]
[323759978,1714252324550,-500.0,0.00039726,30]
[323759979,1714252324577,-500.0,0.00039726,30]
[323759980,1714252324601,-500.0,0.00039726,30]
[323759981,1714252324625,-2341.24,0.00039726,30]
[323759982,1714252324650,-500.0,0.00039726,30]
[323759983,1714252324673,-500.0,0.00039726,30]
[323759984,1714252324700,-500.0,0.00039726,30]
[323759985,1714252324723,-760.85,0.00039726,30]
[323759986,1714252324747,-500.0,0.00039726,30]
[323759987,1714252324771,-500.0,0.00039726,30]
[323759988,1714252324796,-500.0,0.00039726,30]
[323759989,1714252324823,-500.0,0.00039726,30]
[323759990,1714252324847,-500.0,0.00039726,30]
[323759991,1714252324874,-500.0,0.00039726,30]
[323759992,1714252324899,-500.0,0.00039726,30]
[323759993,1714252324925,-500.0,0.00039726,30]
[323759994,1714252324953,-632.65078007,0.00039726,30]
[323759995,1714252324978,-315.01975267,0.00039726,30]
[323759996,1714252325003,-535.5,0.00039726,30]
[323759997,1714252325028,-500.0,0.00039726,30]
[323759998,1714252325053,-500.0,0.00039726,30]
[323759999,1714252325210,-500.0,0.00039726,30]
[323760000,1714252325240,-2690.9,0.00039726,30]
[323760001,1714252325265,-505.55955835,0.00039726,30]
[323760002,1714252325290,-500.0,0.00039726,30]
[323760003,1714252325314,-593.37796715,0.00039726,30]
[323760004,1714252325338,-500.0,0.00039726,30]
[323760005,1714252325362,-798.97,0.00039726,30]
[323760006,1714252325386,-500.0,0.00039726,30]
[323760007,1714252325409,-500.0,0.00039726,30]
[323760008,1714252325432,-500.0,0.00039726,30]
[323760009,1714252325458,-500.0,0.00039726,30]
[323760010,1714252325482,-899.58,0.00039726,30]
[323760011,1714252325507,-500.0,0.00039726,30]
[323760012,1714252325533,-582.02,0.00039726,30]
[323760013,1714252325557,-500.0,0.00039726,30]
[323760014,1714252325581,-722.0,0.00039726,30]
[323760015,1714252325613,-560.75,0.00039726,30]
[323760016,1714252325639,-1009.14,0.00039726,30]
[323760017,1714252325664,-604.43,0.00039726,30]
[323760018,1714252325689,-500.0,0.00039726,30]
[323760019,1714252325716,-500.0,0.00039726,30]
[323760020,1714252325739,-565.69550222,0.00039726,30]
[323760021,1714252325762,-224.58654888,0.00039726,30]
[323760022,1714252325786,-504.06433614,0.00039726,30]
[323760023,1714252325815,-1161.1,0.00039726,30]
[323760024,1714252325840,-500.0,0.00039726,30]
[323760025,1714252325864,-510.04599126,0.00039726,30]
[323760026,1714252325888,-500.0,0.00039726,30]
[323760027,1714252325912,-500.0,0.00039726,30]
[323760028,1714252325937,-500.0,0.00039726,30]
[323760029,1714252325963,-828.44,0.00039726,30]
[323760030,1714252325987,-500.0,0.00039726,30]
[323760031,1714252326012,-500.0,0.00039726,30]
[323760032,1714252326036,-500.0,0.00039726,30]
[323760033,1714252326060,-707.55,0.00039726,30]
[323760034,1714252326085,-500.0,0.00039726,30]
[323760035,1714252326108,-500.0,0.00039726,30]
[323760036,1714252326137,-500.0,0.00039726,30]
[323760037,1714252326162,-3277.64,0.00039726,30]
[323760038,1714252326186,-500.0,0.00039726,30]
[323760039,1714252326214,-2782.16,0.00039726,30]
[323760040,1714252326239,-500.0,0.00039726,30]
[323760041,1714252326264,-506.4300653,0.00039726,30]
[323760042,1714252326289,-500.0,0.00039726,30]
[323760043,1714252326313,-524.23,0.00039726,30]
[323760044,1714252326338,-500.0,0.00039726,30]
[323760045,1714252326362,-500.0,0.00039726,30]
[323760046,1714252326385,-2381.08,0.00039726,30]
[323760047,1714252326409,-500.0,0.00039726,30]
[323760048,1714252326434,-500.0,0.00039726,30]
[323760049,1714252326461,-500.0,0.00039726,30]
[323760050,1714252326486,-636.16,0.00039726,30]
[323760051,1714252326511,-500.89344831,0.00039726,30]
[323760052,1714252326536,-1416.83,0.00039726,30]
[323760053,1714252326561,-577.52,0.00039726,30]
[323760054,1714252326585,-2057.12,0.00039726,30]
[323760055,1714252326609,-890.89,0.00039726,30]
[323760056,1714252326633,-500.0,0.00039726,30]
[323760057,1714252326656,-500.0,0.00039726,30]
[323760058,1714252326681,-500.0,0.00039726,30]
[323760059,1714252326706,-500.0,0.00039726,30]
[323760060,1714252326730,-500.0,0.00039726,30]
[323760061,1714252326753,-500.0,0.00039726,30]
[323760062,1714252326777,-500.0,0.00039726,30]
[323760063,1714252326801,-500.0,0.00039726,30]
[323760064,1714252326824,-485.39568371,0.00039726,30]
[323760065,1714252326848,-500.0,0.00039726,30]
[323760066,1714252326872,-206.62545202,0.00039726,30]
[323760067,1714252326896,-646.92,0.00039726,30]
[323760068,1714252326919,-500.0,0.00039726,30]
[323760069,1714252326942,-500.0,0.00039726,30]
[323760070,1714252326968,-500.0,0.00039726,30]
[323760071,1714252326993,-151.0,0.00039726,30]
[323760072,1714252327017,-1134.45,0.00039726,30]
[323760073,1714252327041,-500.0,0.00039726,30]
[323760074,1714252327065,-500.0,0.00039726,30]
[323760075,1714252327089,-557.6,0.00039726,30]
[323760076,1714252327114,-500.0,0.00039726,30]
[323760077,1714252327140,-500.00750304,0.00039726,30]
[323760078,1714252327164,-500.0,0.00039726,30]
[323760079,1714252327189,-3418.05,0.00039726,30]
[323760080,1714252327216,-500.0,0.00039726,30]
[323760081,1714252327246,-500.0,0.00039726,30]
[323760082,1714252327282,-500.0,0.00039726,30]
[323760083,1714252327430,-500.0,0.00039726,30]
[323760084,1714252327454,-500.0,0.00039726,30]
[323760085,1714252327478,-1000.0,0.00039726,30]
[323760086,1714252327502,-623.32,0.00039726,30]
[323760087,1714252327528,-500.0,0.00039726,30]
[323760088,1714252327551,-500.0,0.00039726,30]
[323760089,1714252327575,-500.0,0.00039726,30]
[323760090,1714252327599,-500.0,0.00039726,30]
[323760091,1714252327624,-500.0,0.00039726,30]
[323760092,1714252327648,-500.0,0.00039726,30]
[323760093,1714252327674,-500.0,0.00039726,30]
[323760094,1714252327700,-636.91,0.00039726,30]
[323760095,1714252327723,-500.0,0.00039726,30]
[323760096,1714252327751,-522.98766307,0.00039726,30]
[323760097,1714252327774,-500.0,0.00039726,30]
[323760098,1714252327799,-500.0,0.00039726,30]
[323760099,1714252327824,-500.0,0.00039726,30]
[323760100,1714252327849,-500.0,0.00039726,30]
[323760101,1714252327873,-3794.54,0.00039726,30]
[323760102,1714252327896,-500.0,0.00039726,30]
[323760103,1714252327921,-729.51,0.00039726,30]
[323760104,1714252327945,-513.27648702,0.00039726,30]
[323760105,1714252327969,-500.0,0.00039726,30]
[323760106,1714252327998,-500.0,0.00039726,30]
[323760107,1714252328021,-586.15538498,0.00039726,30]
[323760108,1714252328045,-500.0,0.00039726,30]
[323760109,1714252328071,-500.0,0.00039726,30]
[323760110,1714252328097,-500.0,0.00039726,30]
[323760111,1714252328122,-517.88,0.00039726,30]
[323760112,1714252328149,-500.0,0.00039726,30]
[323760113,1714252328174,-505.9900643,0.00039726,30]
[323760114,1714252328198,-500.0,0.00039726,30]
[323760115,1714252328221,-2360.47,0.00039726,30]
[323760116,1714252328244,-500.0,0.00039726,30]
[323760117,1714252328267,-514.93298663,0.00039726,30]
[323760118,1714252328293,-500.0,0.00039726,30]
[323760119,1714252328317,-500.0,0.00039726,30]
[323760120,1714252328342,-500.0,0.00039726,30]
[323760121,1714252328376,-2635.33,0.00039726,30]
[323760122,1714252328422,-500.0,0.00039726,30]
[323760123,1714252328478,-500.0,0.00039726,30]
[323760124,1714252328528,-673.61,0.00039726,30]
[323760125,1714252328552,-500.0,0.00039726,30]
[323760126,1714252328576,-1511.05,0.00039726,30]
[323760127,1714252328600,-3595.71,0.00039726,30]
[323760128,1714252328624,-184.42379549,0.00039726,30]
[323760129,1714252328648,-500.0,0.00039726,30]
[323760130,1714252328671,-500.0,0.00039726,30]
[323760131,1714252328703,-500.0,0.00039726,30]
[323760132,1714252328727,-500.0,0.00039726,30]
[323760133,1714252328751,-500.0,0.00039726,30]
[323760134,1714252328775,-1213.91,0.00039726,30]
[323760135,1714252328799,-500.0,0.00039726,30]
[323760136,1714252328823,-500.0,0.00039726,30]
[323760137,1714252328847,-500.0,0.00039726,30]
[323760138,1714252328871,-634.34,0.00039726,30]
[323760139,1714252328894,-200.0,0.00039726,30]
[323760140,1714252328918,-500.0,0.00039726,30]
[323760141,1714252328942,-795.84,0.00039726,30]
[323760142,1714252328967,-500.0,0.00039726,30]
[323760143,1714252328991,-500.0,0.00039726,30]
[323760144,1714252329017,-500.0,0.00039726,30]
[323760145,1714252329041,-500.0,0.00039726,30]
[323760146,1714252329065,-1090.0,0.00039726,30]
[323760147,1714252329102,-500.0,0.00039726,30]
[323760148,1714252329128,-363.21673023,0.00039726,30]
[323760149,1714252329155,-907.87,0.00039726,30]
[323760150,1714252329178,-488.25026793,0.00039726,30]
[323760151,1714252329203,-500.0,0.00039726,30]
[323760152,1714252329227,-500.5756262,0.00039726,30]
[323760153,1714252329250,-500.0,0.00039726,30]
[323760154,1714252329274,-500.0,0.00039726,30]
[323760155,1714252329298,-19510.94,0.00039726,30]
[323760156,1714252329322,-500.0,0.00039726,30]
[323760157,1714252329346,-6714.92,0.00039726,30]
[323760158,1714252329369,-3151.11,0.00039726,30]
[323760159,1714252329393,-500.0,0.00039726,30]
[323760160,1714252329416,-500.0,0.00039726,30]
[323760161,1714252329439,-691.87,0.00039726,30]
[323760162,1714252329465,-500.0,0.00039726,30]
[323760163,1714252329488,-244.66723643,0.00039726,30]
[323760164,1714252329620,-500.0,0.00039726,30]
[323760165,1714252329643,-500.0,0.00039726,30]
[323760166,1714252329667,-419.26525939,0.00039726,30]
[323760167,1714252329690,-500.0,0.00039726,30]
[323760168,1714252329714,-238.0754828,0.00039726,30]
[323760169,1714252329737,-779.19,0.00039726,30]
[323760170,1714252329760,-569.83,0.00039726,30]
[323760171,1714252329783,-500.0,0.00039726,30]
[323760172,1714252329808,-500.0,0.00039726,30]
[323760173,1714252329832,-500.0,0.00039726,30]
[323760174,1714252329858,-500.0,0.00039726,30]
[323760175,1714252329881,-500.0,0.00039726,30]
[323760176,1714252329906,-500.0,0.00039726,30]
[323760177,1714252329930,-894.89,0.00039726,30]
[323760178,1714252329954,-500.0,0.00039726,30]
[323760179,1714252329978,-500.0,0.00039726,30]
[323760180,1714252330003,-500.0,0.00039726,30]
[323760181,1714252330027,-500.0,0.00039726,30]
[323760182,1714252330051,-500.0,0.00039726,30]
[323760183,1714252330075,-2691.32,0.00039726,30]
[323760184,1714252330099,-1601.64,0.00039726,30]
[323760185,1714252330124,-500.0,0.00039726,30]
[323760186,1714252330146,-500.0,0.00039726,30]
[323760187,1714252330170,-2415.56,0.00039726,30]
[323760188,1714252330200,-500.0,0.00039726,30]
[323760189,1714252330224,-614.17,0.00039726,30]
[323760190,1714252330249,-10099.64,0.00039726,30]
[323760191,1714252330274,-500.0,0.00039726,30]
[323760192,1714252330297,-566.08,0.00039726,30]
[323760193,1714252330321,-500.0,0.00039726,30]
[323760194,1714252330344,-500.0,0.00039726,30]
[323760195,1714252330368,-2929.92,0.00039726,30]
[323760196,1714252330393,-13256.29,0.00039726,30]
[323760197,1714252330417,-500.0,0.00039726,30]
[323760198,1714252330440,-1541.4,0.00039726,30]
[323760199,1714252330466,-7292.73,0.00039726,30]
[323760200,1714252330489,-500.0,0.00039726,30]
[323760201,1714252330511,-251.70330501,0.00039726,30]
[323760202,1714252330535,-945.5,0.00039726,30]
[323760203,1714252330558,-500.0,0.00039726,30]
[323760204,1714252330581,-500.0,0.00039726,30]
[323760205,1714252330604,-500.0,0.00039726,30]
[323760206,1714252330628,-449.59563502,0.00039726,30]
[323760207,1714252330651,-500.0,0.00039726,30]
[323760208,1714252330675,-500.0,0.00039726,30]
[323760209,1714252330698,-500.0,0.00039726,30]
[323760210,1714252330722,-504.23589495,0.00039726,30]
[323760211,1714252330746,-500.0,0.00039726,30]
[323760212,1714252330769,-898.6,0.00039726,30]
[323760213,1714252330792,-657.1,0.00039726,30]
[323760214,1714252330817,-500.0,0.00039726,30]
[323760215,1714252330841,-500.0,0.00039726,30]
[323760216,1714252330864,-890.66,0.00039726,30]
[323760217,1714252330887,-500.0,0.00039726,30]
[323760218,1714252330910,-919.13,0.00039726,30]
[323760219,1714252330935,-4463.18,0.00039726,30]
[323760220,1714252330957,-500.0,0.00039726,30]
[323760221,1714252330980,-500.0,0.00039726,30]
[323760222,1714252331003,-500.0,0.00039726,30]
[323760223,1714252331027,-500.0,0.00039726,30]
[323760224,1714252331053,-500.0,0.00039726,30]
[323760225,1714252331085,-1482.33,0.00039726,30]
[323760226,1714252331110,-500.0,0.00039726,30]
[323760227,1714252331134,-877.14,0.00039726,30]
[323760228,1714252331157,-1504.7,0.00039726,30]
[323760229,1714252331182,-500.0,0.00039726,30]
[323760230,1714252331206,-1379.12,0.00039726,30]
[323760231,1714252331230,-500.0,0.00039726,30]
[323760232,1714252331252,-2362.37,0.00039726,30]